bitfinex-derivatives/quotes_BTCF0:USTF0_20250919
["timestamp","ask_amount","ask_price","bid_price","bid_amount"]
[1758255129861,1.09882563,116810.0,116800.0,0.00412891]
[1758255130064,1.89990563,116810.0,116800.0,0.00412891]
[1758255133161,1.56378867,116810.0,116800.0,0.03977891]
[1758255133865,0.76274867,116810.0,116800.0,0.03977891]
[1758255134066,1.56378867,116810.0,116800.0,0.03977891]
[1758255134460,1.56378867,116810.0,116800.0,0.00412891]
[1758255134661,1.89986563,116810.0,116800.0,0.00412891]
[1758255134856,1.09882563,116810.0,116800.0,0.00412891]
[1758255135061,1.89986563,116810.0,116800.0,0.00412891]
[1758255138368,1.22771171,116810.0,116800.0,0.00412891]
[1758255138566,1.89986563,116810.0,116800.0,0.00412891]
[1758255143274,1.09882563,116810.0,116800.0,0.00412891]
[1758255143468,1.89974563,116810.0,116800.0,0.00412891]
[1758255143666,1.22759171,116810.0,116800.0,0.00412891]
[1758255143869,1.56366867,116810.0,116800.0,0.04005891]
[1758255144070,1.56366867,116810.0,116800.0,0.00412891]
[1758255144275,1.89974563,116810.0,116800.0,0.00412891]
[1758255144475,1.22759171,116810.0,116800.0,0.00412891]
[1758255144675,1.89974563,116810.0,116800.0,0.00412891]
[1758255145579,1.09882563,116810.0,116800.0,0.00412891]
[1758255145772,1.89974563,116810.0,116800.0,0.00412891]
[1758255146172,1.56362867,116810.0,116800.0,0.00412891]
[1758255146873,1.89970563,116810.0,116800.0,0.00412891]
[1758255147878,1.09882563,116810.0,116800.0,0.00412891]
[1758255148080,1.89970563,116810.0,116800.0,0.04005891]
[1758255148281,1.89970563,116810.0,116800.0,0.00412891]
[1758255151978,1.09882563,116810.0,116800.0,0.02675891]
[1758255152177,1.22747171,116810.0,116800.0,0.00412891]
[1758255152380,1.89962563,116810.0,116800.0,0.00412891]
[1758255152972,1.22747171,116810.0,116800.0,0.00412891]
[1758255153282,1.89962563,116810.0,116800.0,0.00412891]
[1758255153475,3.70346563,116810.0,116800.0,0.00412891]
[1758255154779,3.03131171,116810.0,116800.0,0.00412891]
[1758255154980,3.70346563,116810.0,116800.0,0.00412891]
[1758255155785,3.03131171,116810.0,116800.0,0.00412891]
[1758255155985,3.70346563,116810.0,116800.0,0.00412891]
[1758255156584,3.70342563,116810.0,116800.0,0.00412891]
[1758255157082,3.03127171,116810.0,116800.0,0.00412891]
[1758255157277,3.70342563,116810.0,116800.0,0.00412891]
[1758255158085,3.03127171,116810.0,116800.0,0.00412891]
[1758255158289,3.70338563,116810.0,116800.0,0.00412891]
[1758255159478,2.90266563,116810.0,116800.0,0.00412891]
[1758255159673,3.70338563,116810.0,116800.0,0.00412891]
[1758255161091,2.90266563,116810.0,116800.0,0.00412891]
[1758255161292,3.70338563,116810.0,116800.0,0.00412891]
[1758255161789,3.36726867,116810.0,116800.0,0.00412891]
[1758255162590,3.70334563,116810.0,116800.0,0.00412891]
[1758255164889,3.70326517,116810.0,116800.0,0.00412891]
[1758255165091,2.90258517,116810.0,116800.0,0.00412891]
[1758255165390,3.70326517,116810.0,116800.0,0.00412891]
[1758255165782,3.03111125,116810.0,116800.0,0.00412891]
[1758255165978,2.90258517,116810.0,116800.0,0.00412891]
[1758255166183,0.04563,116810.0,116800.0,1.83301283]
[1758255166384,0.76267,116810.0,116800.0,1.32301283]
[1758255166586,0.76267,116810.0,116800.0,1.69301283]
[1758255166788,0.76267,116810.0,116800.0,1.32301283]
[1758255167594,0.74104,116810.0,116800.0,1.32301283]
[1758255167982,0.76243,116810.0,116800.0,0.65085891]
[1758255168294,0.04539,116810.0,116800.0,1.32301283]
[1758255168480,0.84599,116810.0,116800.0,1.32301283]
[1758255169493,0.84599,116810.0,116800.0,1.07301283]
[1758255171692,0.84599,116810.0,116800.0,0.40085891]
[1758255171889,0.84599,116810.0,116800.0,1.07301283]
[1758255172390,0.024,116810.0,116800.0,1.69301283]
[1758255172589,0.82452,116810.0,116800.0,1.69301283]
[1758255172789,0.82452,116810.0,116800.0,1.72148385]
[1758255173088,0.82452,116810.0,116800.0,1.33148385]
[1758255173494,0.81652,116810.0,116800.0,1.33048385]
[1758255173795,0.82052,116810.0,116800.0,1.33148385]
[1758255174384,0.82052,116810.0,116800.0,1.32301283]
[1758255174590,0.81052,116810.0,116800.0,1.32101283]
[1758255175192,0.83229,116810.0,116800.0,0.64885891]
[1758255175397,0.83229,116810.0,116800.0,1.32101283]
[1758255175890,0.83229,116810.0,116800.0,1.40456062]
[1758255177096,0.81052,116810.0,116800.0,1.40456062]
[1758255177396,0.81032,116810.0,116800.0,1.93456062]
[1758255181193,0.81032,116810.0,116800.0,2.01456062]
[1758255183596,0.81032,116810.0,116800.0,1.93456062]
[1758255183898,1.08521057,116810.0,116800.0,1.15266005]
[1758255184594,1.08521057,116810.0,116800.0,1.40456062]
[1758255186104,1.08521057,116810.0,116800.0,1.15266005]
[1758255186605,1.33711114,116810.0,116800.0,0.65075948]
[1758255186803,0.83331,116810.0,116800.0,0.39885891]
[1758255187104,1.33711114,116810.0,116800.0,0.65075948]
[1758255187703,1.33711114,116810.0,116800.0,0.39885891]
[1758255187899,1.08521057,116810.0,116800.0,0.65075948]
[1758255188406,1.33711114,116810.0,116800.0,0.03805891]
[1758255188702,1.33711114,116810.0,116800.0,0.28995948]
[1758255189703,1.33711114,116810.0,116800.0,0.03805891]
[1758255190092,1.58901171,116810.0,116800.0,0.03805891]
[1758255190400,1.58901171,116810.0,116800.0,0.00212891]
[1758255190401,1.03869171,116810.0,116800.0,0.00212891]
[1758255190602,1.83869171,116810.0,116800.0,0.00212891]
[1758255190805,1.83865171,116810.0,116800.0,0.00212891]
[1758255191803,2.19945171,116810.0,116800.0,0.00212891]
[1758255192398,1.39949171,116810.0,116800.0,0.00212891]
[1758255192696,2.19945171,116810.0,116800.0,0.00212891]
[1758255193099,1.39949171,116810.0,116800.0,0.00212891]
[1758255193293,0.64379,116810.0,116800.0,0.00212891]
[1758255193493,0.28299,116810.0,116800.0,0.03789891]
[1758255193699,1.83861171,116810.0,116800.0,0.03789891]
[1758255194096,1.58671114,116810.0,116800.0,0.28979948]
[1758255194803,1.58671114,116810.0,116800.0,0.03789891]
[1758255195196,1.83861171,116810.0,116800.0,0.03789891]
[1758255195903,1.03869171,116810.0,116800.0,0.03789891]
[1758255196104,1.83861171,116810.0,116800.0,0.00212891]
[1758255196304,1.83857171,116810.0,116800.0,0.00212891]
[1758255197105,1.03869171,116810.0,116800.0,0.00212891]
[1758255197309,1.83857171,116810.0,116800.0,0.00212891]
[1758255197803,1.83857171,116810.0,116800.0,0.02439891]
[1758255199399,1.83857171,116810.0,116800.0,0.00212891]
[1758255201800,1.03869171,116810.0,116800.0,0.00212891]
[1758255202101,1.83849171,116810.0,116800.0,0.00212891]
[1758255202901,1.03869171,116810.0,116800.0,0.03822891]
[1758255203095,1.83845171,116810.0,116800.0,0.03822891]
[1758255205908,1.83841171,116810.0,116800.0,0.03822891]
[1758255206106,1.03869171,116810.0,116800.0,0.03822891]
[1758255206507,0.28299,116810.0,116800.0,0.03822891]
[1758255206898,0.78679114,116810.0,116800.0,0.29012948]
[1758255207101,1.58647114,116810.0,116800.0,0.29012948]
[1758255207301,1.58647114,116810.0,116800.0,0.03822891]
[1758255207707,1.83837171,116810.0,116800.0,0.03822891]
[1758255208406,1.58647114,116810.0,116800.0,0.29012948]
[1758255208910,1.58647114,116810.0,116800.0,0.03822891]
[1758255209214,1.83837171,116810.0,116800.0,0.03822891]
[1758255209814,1.03869171,116810.0,116800.0,0.03822891]
[1758255210009,1.83833171,116810.0,116800.0,0.03822891]
[1758255210412,1.03869171,116810.0,116800.0,0.03822891]
[1758255210710,1.83833171,116810.0,116800.0,0.03822891]
[1758255211114,1.08263,116810.0,116800.0,0.03822891]
[1758255211307,0.53679114,116810.0,116800.0,0.29012948]
[1758255211508,0.28489057,116810.0,116800.0,0.29012948]
[1758255211713,0.28489057,116810.0,116800.0,0.90283005]
[1758255211912,0.83259,116810.0,116800.0,0.90283005]
[1758255212112,1.08445057,116810.0,116800.0,1.15283005]
[1758255213716,1.08445057,116810.0,116800.0,0.64902891]
[1758255213907,1.08445057,116810.0,116800.0,0.90092948]
[1758255214114,1.33635114,116810.0,116800.0,0.90092948]
[1758255214316,1.08445057,116810.0,116800.0,0.90092948]
[1758255214515,0.83255,116810.0,116800.0,0.90092948]
[1758255214734,1.08445057,116810.0,116800.0,1.15283005]
[1758255215223,1.08445057,116810.0,116800.0,0.90092948]
[1758255215819,1.33635114,116810.0,116800.0,0.28822891]
[1758255216019,1.33635114,116810.0,116800.0,0.54012948]
[1758255216418,1.33635114,116810.0,116800.0,0.28822891]
[1758255216618,1.33635114,116810.0,116800.0,0.54012948]
[1758255216923,1.33635114,116810.0,116800.0,0.28822891]
[1758255217124,1.33635114,116810.0,116800.0,0.54012948]
[1758255219420,1.33635114,116810.0,116800.0,0.29012948]
[1758255219421,0.83255,116810.0,116800.0,0.29012948]
[1758255219624,1.08445057,116810.0,116800.0,0.29012948]
[1758255221331,1.08445057,116810.0,116800.0,0.03822891]
[1758255221530,1.08445057,116810.0,116800.0,0.29012948]
[1758255222530,1.33635114,116810.0,116800.0,0.29012948]
[1758255222925,0.01,116810.0,116800.0,1.79473062]
[1758255223126,0.80932,116810.0,116800.0,1.79473062]
[1758255223930,0.80928,116810.0,116800.0,1.79473062]
[1758255224127,0.01,116810.0,116800.0,1.79473062]
[1758255224325,0.80928,116810.0,116800.0,1.79473062]
[1758255224930,0.01,116810.0,116800.0,1.79473062]
[1758255225130,0.80924,116810.0,116800.0,1.79473062]
[1758255225528,0.80924,116810.0,116800.0,1.03902891]
[1758255225727,0.80624,116810.0,116800.0,1.03802891]
[1758255225934,0.80624,116810.0,116800.0,1.79373062]
[1758255226126,0.80024,116810.0,116800.0,1.79373062]
[1758255226325,0.001,116810.0,116800.0,1.79373062]
[1758255226631,0.80016,116810.0,116800.0,1.79373062]
[1758255227021,0.79916,116810.0,116800.0,1.79473062]
[1758255227227,0.001,116810.0,116800.0,1.79473062]
[1758255227430,0.80016,116810.0,116800.0,1.79473062]
[1758255229135,0.80016,116810.0,116800.0,1.80473062]
[1758255229536,0.001,116810.0,116800.0,1.80473062]
[1758255229735,0.80008,116810.0,116800.0,1.80473062]
[1758255229935,0.001,116810.0,116800.0,1.80473062]
[1758255230132,0.80008,116810.0,116800.0,1.80473062]
[1758255230333,0.001,116810.0,116800.0,2.99934672]
[1758255230533,0.001,116810.0,116800.0,3.10707092]
[1758255232439,0.39292,116830.0,116820.0,0.0355]
[1758255232631,0.63483057,116850.0,116840.0,0.0355]
[1758255232833,0.02213,116850.0,116840.0,0.79120171]
[1758255233038,0.82109,116850.0,116840.0,1.15200171]
[1758255233435,1.84516667,116860.0,116850.0,0.0355]
[1758255233635,2.62449,116860.0,116850.0,1.15200171]
[1758255233830,2.62449,116860.0,116850.0,0.3963]
[1758255234033,2.62449,116860.0,116850.0,0.90010114]
[1758255234229,2.87639057,116860.0,116850.0,0.3963]
[1758255234434,3.12829114,116860.0,116850.0,0.39742891]
[1758255234737,3.12829114,116860.0,116850.0,0.28852948]
[1758255234937,3.74099171,116860.0,116850.0,0.03662891]
[1758255235342,3.74899171,116860.0,116850.0,0.03762891]
[1758255235544,3.49709114,116860.0,116850.0,0.03762891]
[1758255235735,3.49709114,116860.0,116850.0,0.28952948]
[1758255236036,3.48909114,116860.0,116850.0,0.03662891]
[1758255236238,3.50709114,116860.0,116850.0,0.03762891]
[1758255236447,3.50709114,116860.0,116850.0,0.28952948]
[1758255236839,2.88039057,116860.0,116850.0,0.28852948]
[1758255237036,2.88727057,116860.0,116850.0,0.54043005]
[1758255237244,2.63537,116860.0,116850.0,0.90123005]
[1758255237439,2.88727057,116860.0,116850.0,0.90123005]
[1758255237644,2.88127057,116860.0,116850.0,0.90123005]
[1758255237846,2.96501265,116860.0,116850.0,0.73307156]
[1758255238245,2.62929,116860.0,116850.0,0.73307156]
[1758255238843,2.62629,116860.0,116850.0,0.73307156]
[1758255239134,2.60316,116860.0,116850.0,0.73307156]
[1758255239544,2.62369,116860.0,116850.0,0.73307156]
[1758255239744,2.62469,116860.0,116850.0,0.73307156]
[1758255240048,2.62469,116860.0,116850.0,0.39742891]
[1758255240248,2.62461,116860.0,116850.0,0.73307156]
[1758255240444,2.62461,116860.0,116850.0,0.39742891]
[1758255240649,2.96025265,116860.0,116850.0,0.39742891]
[1758255240849,2.96025265,116860.0,116850.0,0.73307156]
[1758255241353,2.96025265,116860.0,116850.0,0.39742891]
[1758255241951,2.96025265,116860.0,116850.0,0.73307156]
[1758255242644,2.96025265,116860.0,116850.0,0.39742891]
[1758255242850,3.2958953,116860.0,116850.0,0.00112891]
[1758255243445,3.2958953,116860.0,116850.0,0.02320891]
[1758255243843,2.62461,116860.0,116850.0,0.03599891]
[1758255244047,3.5557553,116860.0,116850.0,0.00112891]
[1758255244247,3.9165553,116860.0,116850.0,0.00112891]
[1758255245652,4.0694553,116860.0,116850.0,0.00112891]
[1758255247548,3.9165553,116860.0,116850.0,0.00112891]
[1758255248148,3.1178753,116860.0,116850.0,0.00112891]
[1758255248348,3.9163953,116860.0,116850.0,0.00112891]
[1758255253464,3.9406527,116860.0,116850.0,0.00112891]
[1758255253665,3.2693674,116860.0,116850.0,0.00112891]
[1758255253865,3.2593874,116860.0,116850.0,0.00112891]
[1758255254064,3.9162753,116860.0,116850.0,0.00112891]
[1758255255365,3.94054076,116860.0,116850.0,0.00112891]
[1758255255862,3.14214076,116860.0,116850.0,0.00112891]
[1758255256161,3.94054076,116860.0,116850.0,0.00112891]
[1758255258266,3.9162753,116860.0,116850.0,0.00112891]
[1758255258769,3.24499,116860.0,116850.0,0.00112891]
[1758255258960,3.9162753,116860.0,116850.0,0.00112891]
[1758255260260,4.27622246,116860.0,116850.0,0.00112891]
[1758255260465,4.27622246,116860.0,116840.0,0.0001]
[1758255260765,1.8518953,116850.0,116840.0,0.0001]
[1758255260965,0.02732,116840.0,116830.0,0.0001]
[1758255261162,1.0594053,116840.0,116820.0,0.0001]
[1758255261367,1.30835265,116830.0,116820.0,0.09218]
[1758255261566,1.30835265,116830.0,116820.0,0.09208]
[1758255261869,1.30835265,116830.0,116820.0,0.10487]
[1758255262269,0.97271,116830.0,116820.0,0.10487]
[1758255262460,0.17443,116830.0,116820.0,0.10487]
[1758255262664,1.30835265,116830.0,116820.0,0.10487]
[1758255262860,0.17443,116830.0,116820.0,0.10487]
[1758255263069,0.97271,116830.0,116820.0,0.44051265]
[1758255263271,1.30835265,116830.0,116820.0,0.10487]
[1758255263570,1.30835265,116830.0,116820.0,0.10587]
[1758255263766,1.30835265,116830.0,116820.0,0.44351265]
[1758255264163,1.30835265,116830.0,116820.0,0.80431265]
[1758255264362,1.30835265,116830.0,116820.0,0.80231265]
[1758255265172,1.15545265,116830.0,116820.0,0.80231265]
[1758255266871,1.15545265,116830.0,116820.0,0.46667]
[1758255268170,1.15541265,116830.0,116820.0,0.46667]
[1758255268569,0.35717265,116830.0,116820.0,0.46667]
[1758255268770,1.15537265,116830.0,116820.0,0.80231265]
[1758255269172,1.15537265,116830.0,116820.0,0.46667]
[1758255270281,1.15537265,116830.0,116820.0,0.46567]
[1758255270579,1.15637265,116830.0,116820.0,0.80131265]
[1758255271681,1.15637265,116830.0,116820.0,0.46567]
[1758255273390,0.82073,116830.0,116820.0,0.46567]
[1758255273577,1.15637265,116830.0,116820.0,0.46567]
[1758255273882,0.35817265,116830.0,116820.0,0.46567]
[1758255274085,0.35817265,116830.0,116820.0,0.80131265]
[1758255274086,0.82069,116830.0,116820.0,0.80131265]
[1758255274285,1.15633265,116830.0,116820.0,0.80131265]
[1758255274479,0.35817265,116830.0,116820.0,0.80131265]
[1758255274679,1.15633265,116830.0,116820.0,0.80131265]
[1758255275082,0.35817265,116830.0,116820.0,0.80131265]
[1758255275278,1.30923265,116830.0,116820.0,0.80131265]
[1758255275679,1.30919265,116830.0,116820.0,0.80131265]
[1758255277681,0.51107265,116830.0,116820.0,0.80131265]
[1758255277886,0.97355,116830.0,116820.0,0.80131265]
[1758255278186,0.17543,116830.0,116820.0,0.80131265]
[1758255278382,0.97351,116830.0,116820.0,1.3869553]
[1758255278979,0.97351,116830.0,116820.0,1.05131265]
[1758255279180,0.97351,116830.0,116820.0,1.3869553]
[1758255279382,0.95198,116830.0,116820.0,0.64567]
[1758255279587,0.95194,116830.0,116820.0,1.4969553]
[1758255279988,0.95194,116830.0,116820.0,1.1669553]
[1758255280686,0.95194,116830.0,116820.0,0.49567]
[1758255280887,1.31030265,116830.0,116820.0,0.49567]
[1758255281091,1.31030265,116830.0,116820.0,0.13487]
[1758255282890,1.31030265,116830.0,116820.0,0.49567]
[1758255283094,0.51226265,116830.0,116820.0,0.49567]
[1758255283290,0.97458,116830.0,116820.0,0.49567]
[1758255283485,1.31022265,116830.0,116820.0,0.49567]
[1758255284499,1.31022265,116830.0,116820.0,0.83131265]
[1758255285387,1.31018265,116830.0,116820.0,0.83131265]
[1758255285587,0.97454,116830.0,116820.0,1.5069553]
[1758255285786,0.95182,116830.0,116820.0,1.1469553]
[1758255286897,0.97454,116830.0,116820.0,0.81131265]
[1758255287193,0.95182,116830.0,116820.0,1.6169553]
[1758255287593,0.97454,116830.0,116820.0,0.82131265]
[1758255287791,0.9745,116830.0,116820.0,0.82131265]
[1758255288295,0.9745,116830.0,116820.0,0.5933942]
[1758255288600,0.9745,116830.0,116820.0,0.92903685]
[1758255289003,0.17662,116830.0,116820.0,0.92903685]
[1758255289300,0.97446,116830.0,116820.0,0.92903685]
[1758255289488,0.97346,116830.0,116820.0,0.92903685]
[1758255290094,0.97346,116830.0,116820.0,1.2646795]
[1758255290298,0.97346,116830.0,116820.0,1.7446795]
[1758255290700,0.97346,116830.0,116820.0,1.2446795]
[1758255290898,0.17562,116830.0,116820.0,1.2446795]
[1758255291096,0.17562,116830.0,116820.0,1.6756795]
[1758255291298,0.97342,116830.0,116820.0,1.6756795]
[1758255291599,0.97342,116830.0,116820.0,1.2356795]
[1758255291793,0.17562,116830.0,116820.0,1.2356795]
[1758255292096,0.95066,116830.0,116820.0,1.5956795]
[1758255292298,0.95066,116830.0,116820.0,1.5779553]
[1758255292691,0.95066,116830.0,116820.0,1.4879553]
[1758255292994,0.95066,116830.0,116820.0,1.1379553]
[1758255293697,0.95066,116830.0,116820.0,1.1779553]
[1758255294504,0.1529,116830.0,116820.0,1.6379553]
[1758255294801,0.1529,116830.0,116820.0,1.1579553]
[1758255294802,0.95062,116830.0,116820.0,1.1579553]
[1758255295500,0.95062,116830.0,116820.0,1.7079553]
[1758255295701,0.95062,116830.0,116820.0,1.2279553]
[1758255295903,0.95062,116830.0,116820.0,1.1479553]
[1758255296103,0.1529,116830.0,116820.0,1.9735131]
[1758255296297,0.95058,116830.0,116820.0,2.0812373]
[1758255296496,0.95058,116830.0,116820.0,1.9512373]
[1758255296903,0.95058,116830.0,116820.0,2.0512373]
[1758255297098,0.95058,116830.0,116820.0,2.0312373]
[1758255297297,0.1529,116830.0,116820.0,2.0312373]
[1758255297498,0.95054,116830.0,116820.0,1.8656795]
[1758255297701,0.1529,116830.0,116820.0,1.8656795]
[1758255298003,0.95054,116830.0,116820.0,1.8656795]
[1758255298598,0.9505,116830.0,116820.0,1.2799521]
[1758255298799,0.9505,116830.0,116820.0,1.1722279]
[1758255299103,0.7976,116830.0,116820.0,1.7579553]
[1758255299298,0.7976,116830.0,116820.0,1.08667]
[1758255299692,0.7976,116830.0,116820.0,1.7579553]
[1758255299898,0.7976,116830.0,116820.0,1.08667]
[1758255300098,0.7976,116830.0,116820.0,1.84213783]
[1758255300806,0.7976,116830.0,116820.0,1.08667]
[1758255301106,0.7976,116830.0,116820.0,1.84213783]
[1758255301294,0.27295261,116840.0,116830.0,0.03391]
[1758255301496,1.07047261,116840.0,116830.0,0.89835522]
[1758255302508,1.07047261,116840.0,116830.0,0.64653261]
[1758255302694,1.07147261,116840.0,116830.0,0.64653261]
[1758255302900,1.32329522,116840.0,116830.0,0.64653261]
[1758255303101,1.32329522,116840.0,116830.0,0.75425681]
[1758255303710,0.02213,116840.0,116830.0,1.00607942]
[1758255304010,0.79848,116840.0,116830.0,2.04572773]
[1758255304211,0.79848,116840.0,116830.0,1.81572773]
[1758255304712,0.79848,116840.0,116830.0,2.06572773]
[1758255305120,0.79848,116840.0,116830.0,1.90572773]
[1758255305410,0.7984,116840.0,116830.0,2.15672773]
[1758255305914,0.7974,116840.0,116830.0,2.15672773]
[1758255306411,1.82453,116860.0,116850.0,0.03391]
[1758255306608,1.82453,116860.0,116850.0,1.15017783]
[1758255306814,2.62189,116860.0,116850.0,1.15017783]
[1758255307813,2.62189,116860.0,116850.0,0.89835522]
[1758255308315,2.62289,116860.0,116850.0,0.89835522]
[1758255308815,2.62285,116860.0,116850.0,0.89835522]
[1758255309410,2.62285,116860.0,116850.0,1.15017783]
[1758255309411,2.62281,116860.0,116850.0,1.15017783]
[1758255309716,1.82553,116860.0,116850.0,1.15017783]
[1758255309912,2.62281,116860.0,116850.0,1.15017783]
[1758255310105,1.8034,116860.0,116850.0,1.23571393]
[1758255310306,2.60064,116860.0,116850.0,1.58571393]
[1758255310706,2.60164,116860.0,116850.0,1.58571393]
[1758255311014,2.60164,116860.0,116850.0,1.15017783]
[1758255311319,2.62277,116860.0,116850.0,1.15017783]
[1758255312111,1.82553,116860.0,116850.0,1.15017783]
[1758255312417,2.62273,116860.0,116850.0,1.15017783]
[1758255313023,2.6016,116860.0,116850.0,1.50017783]
[1758255314620,2.6016,116860.0,116850.0,1.56977746]
[1758255314821,2.6016,116860.0,116850.0,1.15017783]
[1758255316428,2.62273,116860.0,116850.0,1.15017783]
[1758255317017,2.62273,116860.0,116850.0,0.39471]
[1758255317217,2.62273,116860.0,116850.0,1.15017783]
[1758255319337,2.62273,116860.0,116850.0,1.57571383]
[1758255319627,2.62273,116860.0,116850.0,0.39471]
[1758255319827,2.62273,116860.0,116850.0,1.15017783]
[1758255320333,2.62173,116860.0,116850.0,1.15017783]
[1758255320836,2.6006,116860.0,116850.0,1.15017783]
[1758255321033,2.62173,116860.0,116850.0,0.39471]
[1758255321335,2.6006,116860.0,116850.0,1.54017783]
[1758255322035,2.60036,116860.0,116850.0,1.54117783]
[1758255322332,1.8034,116860.0,116850.0,1.54117783]
[1758255322631,2.60032,116860.0,116850.0,1.62671383]
[1758255323024,1.8034,116860.0,116850.0,1.62671383]
[1758255323224,2.60028,116860.0,116850.0,1.62671383]
[1758255323518,2.60028,116860.0,116850.0,1.64407527]
[1758255325234,1.8034,116860.0,116850.0,1.64407527]
[1758255325435,2.6002,116860.0,116850.0,1.64407527]
[1758255326039,0.02195,116880.0,116870.0,0.03571]
[1758255326335,1.07057261,116880.0,116870.0,0.90015522]
[1758255326833,0.02195,116880.0,116870.0,0.90015522]
[1758255327042,0.81875,116880.0,116870.0,1.15197783]
[1758255327931,0.02195,116880.0,116870.0,1.15197783]
[1758255328131,0.81871,116880.0,116870.0,1.15197783]
[1758255328327,0.82071,116880.0,116870.0,1.15197783]
[1758255329032,1.07253261,116880.0,116870.0,1.15197783]
[1758255329238,1.07253261,116880.0,116870.0,0.39651]
[1758255329439,0.81971,116880.0,116870.0,1.15197783]
[1758255329630,1.07153261,116880.0,116870.0,1.15197783]
[1758255330434,0.81971,116880.0,116870.0,1.15197783]
[1758255332744,0.81971,116880.0,116870.0,1.49197783]
[1758255333038,0.81971,116880.0,116870.0,1.59453616]
[1758255333244,0.001,116880.0,116870.0,1.59453616]
[1758255333635,0.79756,116880.0,116870.0,1.89453616]
[1758255334239,0.001,116880.0,116870.0,2.50533616]
[1758255334437,0.79756,116880.0,116870.0,2.20533616]
[1758255334638,0.79756,116880.0,116870.0,2.54533616]
[1758255334837,0.79756,116880.0,116870.0,2.54633616]
[1758255334838,0.79656,116880.0,116870.0,2.54633616]
[1758255335246,0.0001,116890.0,116880.0,0.1212272]
[1758255335446,1.82469,116900.0,116890.0,0.03571]
[1758255335646,2.62111,116900.0,116890.0,1.15197783]
[1758255335947,1.83312854,116900.0,116890.0,1.15197783]
[1758255336143,2.07641261,116900.0,116890.0,0.90015522]
[1758255336445,2.87289261,116900.0,116890.0,0.90015522]
[1758255337146,2.62107,116900.0,116890.0,0.90015522]
[1758255337348,2.87289261,116900.0,116890.0,0.90015522]
[1758255337747,2.87389261,116900.0,116890.0,0.90015522]
[1758255339548,2.62207,116900.0,116890.0,0.90015522]
[1758255339741,2.87389261,116900.0,116890.0,0.90015522]
[1758255340047,2.62207,116900.0,116890.0,1.15197783]
[1758255340246,2.62195,116900.0,116890.0,1.15197783]
[1758255341351,2.62191,116900.0,116890.0,1.15197783]
[1758255342157,1.82559,116900.0,116890.0,1.51197783]
[1758255342343,2.62187,116900.0,116890.0,1.51197783]
[1758255342953,2.62187,116900.0,116890.0,3.01197783]
[1758255344044,1.82559,116900.0,116890.0,3.02065551]
[1758255344240,1.80364,116900.0,116890.0,3.02065551]
[1758255344441,2.59984,116900.0,116890.0,3.02065551]
[1758255348148,0.001,116900.0,116890.0,3.02065551]
[1758255348349,0.79708,116900.0,116890.0,2.7688329]
[1758255348554,0.79708,116900.0,116890.0,3.02065551]
[1758255350960,0.79708,116900.0,116890.0,3.10616311]
[1758255352149,0.79708,116900.0,116890.0,2.35069528]
[1758255352450,0.001,116900.0,116890.0,3.64616311]
[1758255352656,0.02159,116910.0,116900.0,0.0353]
[1758255352848,0.52085,116910.0,116900.0,1.2349862]
[1758255353053,0.52085,116910.0,116900.0,1.73863142]
[1758255354148,0.52185,116910.0,116900.0,1.73863142]
[1758255354549,0.52285,116910.0,116900.0,1.73863142]
[1758255355660,0.02349,116910.0,116900.0,1.73863142]
[1758255355960,0.81933,116910.0,116900.0,1.73863142]
[1758255356260,0.002,116910.0,116900.0,2.02863142]
[1758255356558,0.7978,116910.0,116900.0,1.73863142]
[1758255358665,1.82469783,116910.0,116900.0,0.0353]
[1758255359660,1.82469783,116910.0,116890.0,1.87357]
[1758255359857,0.52507522,116900.0,116890.0,1.88357]
[1758255360057,0.27325261,116900.0,116890.0,2.12529261]
[1758255360248,1.02689783,116900.0,116890.0,0.02302]
[1758255360453,1.02689783,116900.0,116880.0,0.39078467]
[1758255360454,1.39348783,116900.0,116880.0,0.39078467]
[1758255360752,1.57257783,116890.0,116880.0,0.46380467]
[1758255361057,1.32075522,116890.0,116880.0,0.71552728]
[1758255361459,1.32075522,116890.0,116880.0,0.46370467]
[1758255361757,0.81711,116890.0,116880.0,0.46370467]
[1758255362065,1.15263452,116890.0,116880.0,0.46370467]
[1758255362260,1.40263452,116890.0,116880.0,0.46370467]
[1758255362463,1.40263452,116890.0,116880.0,0.46470467]
[1758255362956,1.40263452,116890.0,116880.0,0.44168467]
[1758255363557,1.41114605,116890.0,116880.0,0.46470467]
[1758255363758,1.40263452,116890.0,116880.0,0.46470467]
[1758255363949,0.60695452,116890.0,116880.0,0.46470467]
[1758255364154,1.40355452,116890.0,116880.0,0.46470467]
[1758255364360,0.27243,116890.0,116880.0,0.80022919]
[1758255364553,0.02243,116890.0,116880.0,1.08475371]
[1758255364763,0.81803,116890.0,116880.0,1.17475371]
[1758255366355,0.02243,116890.0,116880.0,1.17475371]
[1758255366556,0.81803,116890.0,116880.0,1.17475371]
[1758255366761,0.81803,116890.0,116880.0,0.83922919]
[1758255367658,0.81803,116890.0,116880.0,1.17475371]
[1758255367659,0.001,116890.0,116880.0,1.17475371]
[1758255367868,0.79656,116890.0,116880.0,1.54475371]
[1758255368458,0.79656,116890.0,116880.0,1.63475371]
[1758255368752,0.79652,116890.0,116880.0,1.64475371]
[1758255369163,0.79652,116890.0,116880.0,1.71443821]
[1758255370258,0.001,116890.0,116880.0,1.71443821]
[1758255370462,0.001,116890.0,116880.0,2.60547623]
[1758255371861,0.001,116890.0,116880.0,2.60647623]
[1758255372758,0.79554,116900.0,116890.0,0.1224162]
[1758255372959,0.79544,116900.0,116890.0,1.38874072]
[1758255373263,0.79544,116900.0,116890.0,0.96771]
[1758255373264,0.81687,116900.0,116890.0,0.96771]
[1758255373467,0.81687,116900.0,116890.0,0.57771]
[1758255373666,0.81687,116900.0,116890.0,0.73323452]
[1758255374070,0.81775,116900.0,116890.0,0.73323452]
[1758255374369,0.02243,116900.0,116890.0,0.73323452]
[1758255374572,0.81775,116900.0,116890.0,0.73323452]
[1758255375459,0.81775,116900.0,116890.0,1.45875904]
[1758255375663,0.79632,116900.0,116890.0,1.42875904]
[1758255376154,0.79632,116900.0,116890.0,1.09323452]
[1758255376360,0.81775,116900.0,116890.0,0.39771]
[1758255376559,0.81775,116900.0,116890.0,1.46875904]
[1758255377271,0.81775,116900.0,116890.0,1.13323452]
[1758255377662,0.81775,116900.0,116890.0,0.39771]
[1758255377859,0.81775,116900.0,116890.0,1.13323452]
[1758255378168,0.81775,116900.0,116890.0,0.73323452]
[1758255378669,0.81775,116900.0,116890.0,1.10323452]
[1758255379069,0.02243,116900.0,116890.0,1.10323452]
[1758255379371,0.81763,116900.0,116890.0,1.10323452]
[1758255379569,0.02243,116900.0,116890.0,1.10323452]